fUST/lending_fUST_20260225
["ID","MTS","AMOUNT","RATE_DAILY","PERIOD"]
[406618078,1771978042495,-500.0,0.00025214,2]
[406618079,1771978042516,-500.0,0.00025214,2]
[406618080,1771978042544,-500.0,0.00025214,2]
[406618081,1771978042566,-500.0,0.00025214,2]
[406618082,1771978042590,-500.0,0.00025214,2]
[406618083,1771978042613,-500.0,0.00025214,2]
[406618084,1771978042640,-500.0,0.00025214,2]
[406618086,1771978042661,-500.0,0.00025214,2]
[406618087,1771978042685,-500.0,0.00025214,2]
[406618088,1771978042706,-500.0,0.00025214,2]
[406618089,1771978042731,-8293.71,0.000253,2]
[406618090,1771978042755,-218.243513,0.00025342,2]
[406618091,1771978042779,-250.42970116,0.00025433,2]
[406618092,1771978042808,-450.32268863,0.00025433,2]
[406618093,1771978042830,-544.11006338,0.00025565,72]
[406618094,1771978042856,-608.58671855,0.00025565,72]
[406618096,1771978042879,-205.07,0.00025722,2]
[406618097,1771978042900,-719.04747942,0.00025762,2]
[406618098,1771978042926,-162.380719,0.00025762,2]
[406618099,1771978042954,-312.18987194,0.00025968,2]
[406618100,1771978042981,-544.11006338,0.00026084,76]
[406618101,1771978043008,-608.58671855,0.00026084,76]
[406618102,1771978043032,-150.0,0.0002629,30]
[406618103,1771978043058,-242.0,0.0002629,30]
[406618104,1771978043086,-808.0,0.00026302,2]
[406618105,1771978043112,-745.65223616,0.0002631,2]
[406618107,1771978043137,-168.3888056,0.0002631,2]
[406618108,1771978043161,-151.0,0.000265,10]
[406618109,1771978043183,-808.0,0.00026515,2]
[406618110,1771978043210,-731.24,0.00026532,20]
[406618111,1771978043236,-794.88,0.00026532,120]
[406618112,1771978043260,-544.11006338,0.00026603,80]
[406618113,1771978043284,-608.58671855,0.00026603,80]
[406618114,1771978043308,-511.32,0.00026629,120]
[406618115,1771978043333,-561.37206748,0.00026704,2]
[406618116,1771978043357,-1000.0,0.00026824,30]
[406618118,1771978043384,-791.0,0.00026824,30]
[406618119,1771978043406,-284.8005,0.00026841,2]
[406618120,1771978043428,-773.2413689,0.00026858,2]
[406618121,1771978043450,-174.61919141,0.00026858,2]
[406618122,1771978043475,-200.0,0.00027,120]
[406618123,1771978043499,-385.28411,0.00027,120]
[406618124,1771978043523,-200.0,0.00027,120]
[406618125,1771978043547,-200.0,0.00027,120]
[406618126,1771978043570,-1513.61681797,0.00027015,2]
[406618127,1771978043592,-5549.70322938,0.00027091,2]
[406618128,1771978043615,-731.24,0.00027101,21]
[406618130,1771978043639,-731.24,0.00027101,21]
[406618131,1771978043662,-731.24,0.00027101,21]
[406618132,1771978043686,-731.24,0.00027101,21]
[406618133,1771978043709,-731.25578141,0.00027101,21]
[406618134,1771978043733,-794.88,0.00027101,120]
[406618135,1771978043759,-794.88,0.00027101,120]
[406618136,1771978043785,-794.88,0.00027101,120]
[406618137,1771978043809,-794.88,0.00027101,120]
[406618138,1771978043832,-794.92393711,0.00027101,120]
[406618139,1771978043855,-66596.4387526,0.00027102,2]
[406618140,1771978043880,-559489.84836824,0.00027112,2]
[406618141,1771978044354,-473.67327033,0.00022371,30]
[406618142,1771978044751,-22.92672967,0.00022371,30]
[406618143,1771978044772,-567.55,0.0002337,30]
[406618144,1771978044793,-638.49,0.00024369,30]
[406618145,1771978044815,-500.0,0.00025214,2]
[406618146,1771978044836,-151.0,0.00025214,2]
[406618147,1771978044858,-500.0,0.00025214,2]
[406618148,1771978044878,-151.0,0.00025214,2]
[406618149,1771978044901,-500.0,0.00025214,2]
[406618150,1771978044921,-267.00932637,0.00025214,2]
[406618151,1771978044946,-500.0,0.00025214,2]
[406618152,1771978044967,-709.43,0.00025369,30]
[406618153,1771978044987,-475.0,0.00026629,120]
[406618154,1771978045007,-475.0,0.00026629,120]
[406618155,1771978045026,-475.0,0.00026629,120]
[406618156,1771978045045,-475.0,0.00026629,120]
[406618157,1771978045066,-475.0,0.00026629,120]
[406618158,1771978045087,-475.0,0.00026629,120]
[406618159,1771978045108,-475.0,0.00026629,120]
[406618160,1771978045129,-475.0,0.00026629,120]
[406618161,1771978045150,-475.0,0.00026629,120]
[406618162,1771978045173,-475.0,0.00026629,120]
[406618163,1771978045194,-475.0,0.00026629,120]
[406618164,1771978045215,-475.0,0.00026629,120]
[406618165,1771978045237,-475.0,0.00026629,120]
[406618166,1771978045262,-475.0,0.00026629,120]
[406618167,1771978045281,-475.0,0.00026629,120]
[406618168,1771978045301,-475.0,0.00026629,120]
[406618169,1771978045320,-32839.00600325,0.00027112,2]
[406618170,1771978045343,-623.0,0.00027115,2]
[406618171,1771978045364,-150.0,0.00027115,2]
[406618172,1771978045384,-172.0,0.00027115,2]
[406618173,1771978045404,-544.11006338,0.00027122,83]
[406618174,1771978045423,-608.58671855,0.00027122,83]
[406618175,1771978045443,-527.1800658,0.0002726,6]
[406618176,1771978045463,-550.0,0.000273,120]
[406618177,1771978045483,-500.0,0.00027397,2]
[406618178,1771978045505,-500.0,0.00027397,2]
[406618179,1771978045526,-500.0,0.00027397,2]
[406618180,1771978045546,-500.0,0.00027397,2]
[406618181,1771978045566,-500.0,0.00027397,2]
[406618182,1771978045587,-500.0,0.00027397,2]
[406618183,1771978045608,-500.0,0.00027397,2]
[406618184,1771978045629,-500.0,0.00027397,2]
[406618185,1771978045651,-500.0,0.00027397,2]
[406618186,1771978045673,-500.0,0.00027397,2]
[406618187,1771978045695,-500.0,0.00027397,2]
[406618188,1771978045716,-500.0,0.00027397,2]
[406618189,1771978045740,-500.0,0.00027397,2]
[406618190,1771978045761,-500.0,0.00027397,2]
[406618191,1771978045782,-500.0,0.00027397,2]
[406618192,1771978045804,-500.0,0.00027397,2]
[406618193,1771978045826,-500.0,0.00027397,2]
[406618194,1771978045848,-500.0,0.00027397,2]
[406618195,1771978045870,-500.0,0.00027397,2]
[406618196,1771978045891,-500.0,0.00027397,2]
[406618197,1771978045912,-500.0,0.00027397,2]
[406618198,1771978046056,-500.0,0.00027397,2]
[406618199,1771978046077,-500.0,0.00027397,2]
[406618200,1771978046099,-500.0,0.00027397,2]
[406618201,1771978046120,-500.0,0.00027397,2]
[406618202,1771978046140,-290.41879511,0.00027397,2]
[406618203,1771978046160,-500.0,0.00027397,2]
[406618204,1771978046180,-500.0,0.00027397,2]
[406618205,1771978046202,-500.0,0.00027397,2]
[406618206,1771978046223,-500.0,0.00027397,2]
[406618207,1771978046243,-500.0,0.00027397,2]
[406618208,1771978046264,-500.0,0.00027397,2]
[406618209,1771978046285,-500.0,0.00027397,2]
[406618210,1771978046306,-500.0,0.00027397,2]
[406618211,1771978046328,-500.0,0.00027397,2]
[406618212,1771978046350,-500.0,0.00027397,2]
[406618213,1771978046371,-500.0,0.00027397,2]
[406618214,1771978046394,-500.0,0.00027397,2]
[406618215,1771978046415,-500.0,0.00027397,2]
[406618216,1771978046437,-500.0,0.00027397,2]
[406618217,1771978046457,-500.0,0.00027397,2]
[406618218,1771978046477,-500.0,0.00027397,2]
[406618219,1771978046499,-500.0,0.00027397,2]
[406618220,1771978046519,-500.0,0.00027397,2]
[406618221,1771978046540,-500.0,0.00027397,2]
[406618222,1771978046564,-500.0,0.00027397,2]
[406618223,1771978046586,-500.0,0.00027397,2]
[406618224,1771978046609,-500.0,0.00027397,2]
[406618225,1771978046631,-500.0,0.00027397,2]
[406618226,1771978046651,-500.0,0.00027397,2]
[406618227,1771978046672,-350.0,0.00027397,2]
[406618228,1771978046695,-500.0,0.00027397,2]
[406618229,1771978046718,-500.0,0.00027397,2]
[406618230,1771978046739,-500.0,0.00027397,2]
[406618231,1771978046759,-1000.0,0.00027397,120]
[406618232,1771978046778,-151.0,0.00027397,2]
[406618233,1771978046797,-151.0,0.00027397,2]
[406618234,1771978046817,-151.0,0.00027397,2]
[406618235,1771978046837,-243.337932,0.00027397,2]
[406618236,1771978046857,-150.0,0.00027397,5]
[406618237,1771978046878,-801.85129955,0.00027406,2]
[406618238,1771978046898,-181.08010149,0.00027406,2]
[406618239,1771978046920,-187.0,0.00027533,30]
[406618240,1771978046945,-544.11006338,0.00027642,87]
[406618241,1771978046965,-608.58671855,0.00027642,87]
[406618242,1771978046988,-261.0,0.00027934,120]
[406618243,1771978047009,-250.0,0.00027945,5]
[406618244,1771978047034,-831.51979763,0.00027954,2]
[406618245,1771978047056,-187.78006525,0.00027954,2]
[406618246,1771978047077,-150.5,0.00028,2]
[406618247,1771978047098,-150.0,0.00028,5]
[406618248,1771978047119,-150.0,0.00028,5]
[406618249,1771978047144,-497.832461,0.00028109,30]
[406618250,1771978047164,-544.11006338,0.00028161,91]
[406618251,1771978047185,-608.58671855,0.00028161,91]
[406618252,1771978047207,-8293.71,0.000282,2]
[406618253,1771978047228,-205.0,0.00028282,30]
[406618254,1771978047248,-350.0,0.00028493,5]
[406618255,1771978047270,-862.28603014,0.00028502,2]
[406618256,1771978047289,-194.72792766,0.00028502,2]
[406618257,1771978047310,-250.0,0.00028548,5]
[406618258,1771978047330,-250.0,0.00028548,5]
[406618259,1771978047351,-544.11006338,0.0002868,95]
[406618260,1771978047371,-608.58671855,0.0002868,95]
[406618261,1771978047391,-500.0,0.00028767,120]
[406618262,1771978047411,-218.243513,0.00028767,60]
[406618263,1771978047430,-505.0776898,0.00028822,120]
[406618264,1771978047452,-155.0,0.00028932,30]
[406618265,1771978047471,-200.0,0.00029,120]
[406618266,1771978047492,-450.0,0.00029041,5]
[406618267,1771978047511,-894.19061326,0.0002905,2]
[406618268,1771978047530,-201.93286099,0.0002905,2]
[406618269,1771978047550,-350.0,0.00029096,5]
[406618270,1771978047569,-350.0,0.00029096,5]
[406618271,1771978047597,-1418.07691031,0.0002912,2]
[406618272,1771978054081,-654.01163853,0.00012319,2]
[406618273,1771978054104,-654.01163853,0.00012319,2]
[406618274,1771978054126,-654.01163853,0.00012319,2]
[406618275,1771978054150,-654.01163853,0.00012319,2]
[406618276,1771978054172,-654.01163853,0.00012319,2]
[406618277,1771978054194,-654.01163853,0.00012319,2]
[406618278,1771978054217,-654.01163853,0.00012319,2]
[406618279,1771978054239,-654.01163853,0.00012319,2]
[406618280,1771978054262,-654.01163853,0.00012319,2]
[406618281,1771978054284,-654.01163853,0.00012319,2]
[406618282,1771978054308,-654.01163853,0.00012319,2]
[406618283,1771978054331,-654.01163853,0.00012319,2]
[406618284,1771978054354,-654.01163853,0.00012319,2]
[406618285,1771978054376,-654.01163853,0.00012319,2]
[406618286,1771978054397,-654.01163853,0.00012319,2]
[406618287,1771978054419,-654.01163853,0.00012319,2]
[406618288,1771978054442,-654.01163853,0.00012319,2]
[406618289,1771978054463,-654.01163853,0.00012319,2]
[406618290,1771978054485,-654.01163853,0.00012319,2]
[406618291,1771978054507,-654.01163853,0.00012319,2]
[406618292,1771978054528,-654.01163853,0.00012319,2]
[406618293,1771978054549,-654.01163853,0.00012319,2]
[406618294,1771978054569,-654.01163853,0.00012319,2]
[406618295,1771978054590,-654.01163853,0.00012319,2]
[406618296,1771978054612,-654.01163853,0.00012319,2]
[406618297,1771978054635,-654.01163853,0.00012319,2]
[406618298,1771978054672,-654.01163853,0.00012319,2]
[406618299,1771978054698,-654.01163853,0.00012319,2]
[406618300,1771978054724,-654.01163853,0.00012319,2]
[406618301,1771978054749,-654.01163853,0.00012319,2]
[406618302,1771978054772,-654.01163853,0.00012319,2]
[406618303,1771978054795,-654.01163853,0.00012319,2]
[406618304,1771978054816,-230.08413517,0.00013699,2]
[406618305,1771978054839,-500.0,0.00025214,2]
[406618306,1771978054862,-500.0,0.00025214,2]
[406618307,1771978054885,-250.0,0.00025214,2]
[406618308,1771978054906,-250.0,0.00025214,2]
[406618309,1771978054927,-250.0,0.00025214,2]
[406618310,1771978054956,-209.40437684,0.00025214,2]
[406618311,1771978054978,-250.0,0.00025214,2]
[406618312,1771978055005,-217.15233878,0.00025214,2]
[406618313,1771978055026,-250.0,0.00025214,2]
[406618314,1771978055051,-225.18697532,0.00025214,2]
[406618315,1771978055071,-250.0,0.00025214,2]
[406618316,1771978055277,-233.51889341,0.00025214,2]
[406618317,1771978055300,-250.0,0.00025214,2]
[406618318,1771978055324,-242.15909246,0.00025214,2]
[406618319,1771978055345,-250.0,0.00025214,2]
[406618320,1771978055370,-251.11897888,0.00025214,2]
[406618321,1771978055391,-250.0,0.00025214,2]
[406618322,1771978055416,-260.4103811,0.00025214,2]
[406618323,1771978055442,-270.0455652,0.00025214,2]
[406618324,1771978055467,-280.03725112,0.00025214,2]
[406618325,1771978055493,-290.39862941,0.00025214,2]
[406618326,1771978055518,-301.1433787,0.00025214,2]
[406618327,1771978055539,-475.0,0.00026629,120]
[406618328,1771978055560,-475.0,0.00026629,120]
[406618329,1771978055581,-475.0,0.00026629,120]
[406618330,1771978055602,-475.0,0.00026629,120]
[406618331,1771978055623,-475.0,0.00026629,120]
[406618332,1771978055645,-475.0,0.00026629,120]
[406618333,1771978055665,-475.0,0.00026629,120]
[406618334,1771978055687,-419.52,0.00026629,120]
[406618335,1771978055708,-2166.69911519,0.0002912,2]
[406618336,1771978055730,-697.0,0.00029155,2]
[406618337,1771978055753,-150.0,0.00029155,2]
[406618338,1771978055775,-150.0,0.00029155,2]
[406618339,1771978055798,-243.0,0.00029155,2]
[406618340,1771978055821,-544.11006338,0.00029199,98]
[406618341,1771978055842,-608.58671855,0.00029199,98]
[406618342,1771978055863,-216.0,0.00029352,7]
[406618343,1771978055886,-194.0,0.000294,7]
[406618344,1771978055906,-443.745,0.00029408,2]
[406618345,1771978055925,-160.0,0.0002944,2]
[406618346,1771978055946,-736.151,0.00029466,2]
[406618347,1771978055967,-1000.0,0.00029507,30]
[406618348,1771978055989,-1000.0,0.00029507,30]
[406618349,1771978056011,-550.0,0.00029589,5]
[406618350,1771978056030,-209.40437684,0.00029598,2]
[406618351,1771978056050,-450.0,0.00029644,5]
[406618352,1771978056072,-450.0,0.00029644,5]
[406618353,1771978056093,-544.11006338,0.00029718,102]
[406618354,1771978056116,-608.58671855,0.00029718,102]
[406618355,1771978056141,-150.0,0.0002975,30]
[406618356,1771978056162,-192.0,0.0002975,30]
[406618357,1771978056181,-484.0,0.000299,12]
[406618358,1771978056203,-472.48661905,0.0003,7]
[406618359,1771978056222,-516.71120726,0.0003,30]
[406618360,1771978056242,-271.24580836,0.0003,2]
[406618361,1771978056262,-310.95891382,0.0003,14]
[406618362,1771978056284,-1878.58,0.0003,30]
[406618363,1771978056306,-150.0,0.00030057,7]
[406618364,1771978056327,-168.0,0.00030057,7]
[406618365,1771978056348,-153.0,0.00030114,7]
[406618366,1771978056367,-150.0,0.0003013,2]
[406618367,1771978056389,-1000.0,0.00030137,120]
[406618368,1771978056412,-531.30242159,0.00030137,120]
[406618369,1771978056433,-1002.65164113,0.00030137,120]
[406618370,1771978056453,-452.6765125,0.00030137,5]
[406618371,1771978056472,-217.15233878,0.00030146,2]
[406618372,1771978056491,-281.15656331,0.00030192,5]
[406618373,1771978056511,-550.0,0.00030192,5]
[406618374,1771978056532,-544.11006338,0.00030238,106]
[406618375,1771978056553,-608.58671855,0.00030238,106]
[406618376,1771978056574,-280.0,0.00030263,7]
[406618377,1771978056594,-274.673737,0.00030622,30]
[406618378,1771978056614,-225.18697532,0.00030694,2]
[406618379,1771978056633,-205.09066832,0.0003074,14]
[406618380,1771978056653,-650.0,0.0003074,5]
[406618381,1771978056674,-219.0,0.00030752,7]
[406618382,1771978056694,-544.11006338,0.00030757,110]
[406618383,1771978056715,-608.58671855,0.00030757,110]
[406618384,1771978056736,-150.0,0.00030809,30]
[406618385,1771978056757,-193.0,0.00030809,30]
[406618386,1771978056779,-483.79828466,0.00030879,16]
[406618387,1771978056802,-150.0,0.00030934,7]
[406618388,1771978056823,-150.0,0.00030934,7]
[406618389,1771978056844,-248.0,0.00030934,7]
[406618390,1771978056864,-307.80331134,0.0003099,2]
[406618391,1771978056886,-192.40784992,0.00031,120]
[406618392,1771978056907,-195.76654552,0.00031,120]
[406618393,1771978056930,-183.11135405,0.00031,120]
[406618394,1771978057133,-160.05841326,0.00031,120]
[406618395,1771978057156,-299.96000002,0.00031,120]
[406618396,1771978057175,-224.90940505,0.00031,120]
[406618397,1771978057194,-240.81935516,0.00031,120]
[406618398,1771978057214,-189.54465426,0.00031,120]
[406618399,1771978057236,-199.61462148,0.00031,120]
[406618400,1771978057257,-269.23166019,0.00031,120]
[406618401,1771978057278,-488.50369259,0.00031,2]
[406618402,1771978057299,-233.51889341,0.00031242,2]
[406618403,1771978057319,-750.0,0.00031288,5]
[406618404,1771978057339,-153.0,0.00031395,7]
[406618405,1771978057360,-176.8555,0.000314,120]
[406618406,1771978057382,-189.0,0.00031448,14]
[406618407,1771978057402,-150.0,0.000315,7]
[406618408,1771978057423,-221.0,0.000315,7]
[406618409,1771978057444,-170.0,0.000315,14]
[406618410,1771978057469,-481.42678497,0.00031519,18]
[406618411,1771978057490,-150.0,0.00031559,7]
[406618412,1771978057512,-194.0,0.00031559,7]
[406618413,1771978057536,-228.0,0.00031609,120]
[406618414,1771978057560,-150.0,0.00031644,7]
[406618415,1771978057584,-264.0,0.00031644,7]
[406618416,1771978057607,-238.0,0.00031702,7]
[406618417,1771978057631,-500.0,0.0003175,2]
[406618418,1771978057651,-242.15909246,0.0003179,2]
[406618419,1771978057672,-202.0,0.00031836,49]
[406618420,1771978057693,-850.0,0.00031836,5]
[406618421,1771978057717,-160.05841326,0.000319,120]
[406618422,1771978057738,-8293.71,0.000319,2]
[406618423,1771978057760,-58852.06036514,0.00032,2]
[406618424,1771978057779,-201.81645422,0.00032,2]
[406618425,1771978057802,-278.0,0.00032204,14]
[406618426,1771978057823,-250.2551,0.000323,120]
[406618427,1771978057843,-385.28411,0.000323,120]
[406618428,1771978057868,-200.0,0.000323,120]
[406618429,1771978057890,-200.0,0.000323,120]
[406618430,1771978057912,-345.57514883,0.00032338,2]
[406618431,1771978057935,-950.0,0.00032384,5]
[406618432,1771978057954,-429.0,0.00032408,2]
[406618433,1771978057976,-245.0,0.00032424,14]
[406618434,1771978057999,-1000.0,0.00032458,30]
[406618435,1771978058025,-1000.0,0.00032458,30]
[406618436,1771978058050,-579.0,0.00032458,30]
[406618437,1771978058072,-727.0,0.00032466,2]
[406618438,1771978058092,-5000.0,0.000328,2]
[406618439,1771978058115,-229.0,0.00032863,120]
[406618440,1771978058137,-166.80034067,0.00032877,120]
[406618441,1771978067573,151.0,0.0004195,120]
[406618442,1771978067950,151.0,0.0004195,120]
[406618443,1771978068346,151.0,0.0004195,120]
[406618444,1771978068711,151.0,0.0004195,120]
[406618445,1771978069655,180.095968,0.0004195,120]
[406618446,1771978107493,175.087392,0.0004195,120]
[406618447,1771978107796,175.087392,0.0004195,120]
[406618448,1771978108097,175.087392,0.0004195,120]
[406618449,1771978108431,197.479996,0.0004195,120]
[406618450,1771978108539,175.087392,0.0004195,120]
[406618451,1771978108799,175.087392,0.0004195,120]
[406618452,1771978109116,175.087392,0.0004195,120]
[406618453,1771978109421,175.087392,0.0004195,120]
[406618454,1771978109721,175.087392,0.0004195,120]
[406618455,1771978110014,175.087392,0.0004195,120]
[406618456,1771978110317,175.087392,0.0004195,120]
[406618457,1771978110619,175.087392,0.0004195,120]
[406618458,1771978111330,175.087392,0.0004195,120]
[406618459,1771978111486,175.087392,0.0004195,120]
[406618460,1771978111620,175.087392,0.0004195,120]
[406618461,1771978111847,151.0,0.0004195,120]
[406618462,1771978111959,175.087392,0.0004195,120]
[406618463,1771978112129,164.567632,0.0004195,120]
[406618464,1771978112238,175.087392,0.0004195,120]
[406618465,1771978112460,175.087392,0.0004195,120]
[406618466,1771978112738,175.087392,0.0004195,120]
[406618467,1771978113028,175.087392,0.0004195,120]
[406618468,1771978113305,175.087402,0.0004195,120]
[406618469,1771978114383,151.0,0.0004195,120]
[406618470,1771978114676,151.0,0.0004195,120]
[406618471,1771978114987,151.0,0.0004195,120]
[406618472,1771978115400,151.0,0.0004195,120]
[406618473,1771978115707,151.0,0.0004195,120]
[406618474,1771978115970,151.0,0.0004195,120]
[406618475,1771978116245,151.0,0.0004195,120]
[406618476,1771978116526,151.0,0.0004195,120]
[406618477,1771978116811,151.0,0.0004195,120]
[406618478,1771978117096,151.0,0.0004195,120]
[406618479,1771978117372,151.0,0.0004195,120]
[406618480,1771978117581,207.473648,0.0004195,120]
[406618481,1771978117696,151.0,0.0004195,120]
[406618482,1771978117875,207.473648,0.0004195,120]
[406618483,1771978117982,151.0,0.0004195,120]
[406618484,1771978118196,207.473648,0.0004195,120]
[406618485,1771978118318,151.0,0.0004195,120]
[406618486,1771978118463,207.473648,0.0004195,120]
[406618487,1771978118577,151.0,0.0004195,120]
[406618488,1771978118778,207.473648,0.0004195,120]
[406618489,1771978118899,151.0,0.0004195,120]
[406618490,1771978119074,207.473648,0.0004195,120]
[406618491,1771978119196,244.252075,0.0004195,120]
[406618492,1771978119479,207.473648,0.0004195,120]
[406618493,1771978119738,207.473648,0.0004195,120]
[406618494,1771978120240,207.473648,0.0004195,120]
[406618495,1771978120541,207.473648,0.0004195,120]
[406618496,1771978120820,207.473648,0.0004195,120]
[406618497,1771978121124,207.473648,0.0004195,120]
[406618498,1771978121631,207.473648,0.0004195,120]
[406618499,1771978121776,207.473648,0.0004195,120]
[406618500,1771978121970,207.473648,0.0004195,120]
[406618501,1771978122262,207.473648,0.0004195,120]
[406618502,1771978122550,207.473648,0.0004195,120]
[406618503,1771978122851,207.473648,0.0004195,120]
[406618504,1771978123130,207.473648,0.0004195,120]
[406618505,1771978123423,207.473639,0.0004195,120]
[406618506,1771978173591,151.0,0.0004195,120]
[406618507,1771978173797,169.963575,0.0004195,120]
[406618508,1771978179974,183.040786,0.0004195,120]
[406618509,1771978180257,183.040786,0.0004195,120]
[406618510,1771978180622,183.040786,0.0004195,120]
[406618511,1771978180852,183.040786,0.0004195,120]
[406618512,1771978181139,183.040786,0.0004195,120]
[406618513,1771978181413,183.040786,0.0004195,120]
[406618514,1771978181703,183.040786,0.0004195,120]
[406618515,1771978181986,183.040786,0.0004195,120]
[406618516,1771978182270,183.040786,0.0004195,120]
[406618517,1771978182680,183.040786,0.0004195,120]
[406618518,1771978182989,183.040786,0.0004195,120]
[406618519,1771978183469,183.040786,0.0004195,120]
[406618520,1771978183886,183.040786,0.0004195,120]
[406618521,1771978184007,183.040786,0.0004195,120]
[406618522,1771978184248,183.040786,0.0004195,120]
[406618523,1771978184512,183.040786,0.0004195,120]
[406618524,1771978184799,183.040786,0.0004195,120]
[406618525,1771978186112,183.040786,0.0004195,120]
[406618526,1771978186369,183.040786,0.0004195,120]
[406618527,1771978186655,183.040789,0.0004195,120]
[406618528,1771978228887,151.0,0.00041944,120]
[406618529,1771978229182,151.0,0.00041944,120]
[406618530,1771978229492,151.0,0.00041944,120]
[406618531,1771978229804,164.145932,0.00041944,120]
[406618563,1771978233088,-707.0,0.00019178,2]
[406618564,1771978233098,-151.0,0.00019178,2]
[406618565,1771978233107,-151.0,0.00019178,2]
[406618566,1771978233117,-151.0,0.00019178,2]
[406618567,1771978233127,-151.0,0.00019178,2]
[406618568,1771978233136,-150.15806434,0.00021918,2]
[406618569,1771978233146,-300.0,0.00026573,2]
[406618570,1771978233155,-300.0,0.00026573,2]
[406618571,1771978233167,-300.0,0.00026573,2]
[406618572,1771978233176,-1200.0,0.00026573,2]
[406618573,1771978233186,-500.0,0.00026574,2]
[406618574,1771978233195,-500.0,0.00026574,2]
[406618575,1771978233205,-500.0,0.00026574,2]
[406618576,1771978233215,-500.0,0.00026574,2]
[406618577,1771978233224,-500.0,0.00026574,2]
[406618578,1771978233233,-500.0,0.00026574,2]
[406618579,1771978233243,-500.0,0.00026574,2]
[406618580,1771978233252,-500.0,0.00026574,2]
[406618581,1771978233262,-500.0,0.00026574,2]
[406618582,1771978233271,-500.0,0.00026574,2]
[406618583,1771978233281,-500.0,0.00026574,2]
[406618584,1771978233290,-500.0,0.00026574,2]
[406618585,1771978233300,-500.0,0.00026574,2]
[406618586,1771978233310,-500.0,0.00026574,2]
[406618587,1771978233320,-479.16918566,0.00026574,2]
[406618588,1771978233722,151.0,0.00041944,120]
[406618589,1771978233861,151.0,0.00041944,120]
[406618590,1771978234102,151.0,0.00041944,120]
[406618591,1771978234377,151.0,0.00041944,120]
[406618592,1771978234660,151.0,0.00041944,120]
[406618593,1771978234945,151.0,0.00041944,120]
[406618601,1771978237950,161.994617,0.00041944,120]
[406618602,1771978238253,161.994617,0.00041944,120]
[406618603,1771978238270,-150.0,0.00028,5]
[406618604,1771978238491,-250.0,0.00028548,5]
[406618605,1771978238501,-350.0,0.00029096,5]
[406618606,1771978238510,-450.0,0.00029644,5]
[406618607,1771978238519,-550.0,0.00030192,5]
[406618608,1771978238528,-196.0,0.0003063,41]
[406618609,1771978238538,-650.0,0.0003074,5]
[406618610,1771978238548,-153.16957801,0.00030937,10]
[406618611,1771978238557,-176.75093167,0.00031,120]
[406618612,1771978238567,-168.11212607,0.00031,120]
[406618613,1771978238577,-194.88233464,0.00031,120]
[406618614,1771978238586,-422.02318995,0.00031288,5]
[406618615,1771978238595,-165.85754083,0.00031894,10]
[406618616,1771978238604,-194.88233464,0.000319,120]
[406618617,1771978238613,-166.0,0.00032274,52]
[406618618,1771978238623,-168.0,0.00032677,2]
[406618619,1771978238632,-168.0,0.00032798,2]
[406618620,1771978238641,-833.19965933,0.00032877,120]